{"text_format":"1","workbook":"xlsx","n_sheets":1,"sheets":["P7 (18 septembre au 15 octobre)"],"not_rendered":{"charts":0,"images":0,"macros":1,"external_links":0,"defined_names":0,"comments":0,"pivot_tables":0},"unopened":[],"bounds":{"document_bytes":16777216,"sheet_cells":100000,"rows_first":2000,"rows_last":500,"rows_between":2000,"halvings":0,"cell_chars":16384,"cell_head_chars":4096},"cells_cut":0,"cells_raw":0,"read":"whole","date_system":"1900"}

{"sheet":"P7 (18 septembre au 15 octobre)","index":0,"n_rows":101,"n_cols":12,"rows_kept":101,"cut":false,"hidden":false,"merged":[[56,8,56,9],[32,5,32,6],[34,5,34,6],[39,5,39,6],[56,3,56,5],[56,6,56,7]]}
["Période 7  (18 septembre au 15 octobre)"]
[]
["Date de référence","# Dossier","Nom du client","Priorité","Client connu","Provenance de la demande","Motif de la demande","Statut","Date prise en charge","Nom de l'intervenant assigné","Autres","Délai d'attente"]
[null,null,null,null,null,null,null,{"$f":"IF(A4=\"\",\"\",IF(I4<=0,\"En attente\",\"Pris en charge\"))","v":""},null,null,null,{"$f":"IF(A4=\"\",\"\",(TODAY()-(A4+IF(D4=\"P1\",2,IF(D4=\"P2\",10,IF(D4=\"P3\",21,IF(D4=\"P4\",91,IF(D4=\"P5\",183))))))))","v":""}]
[null,null,null,null,null,null,null,{"$f":"IF(A5=\"\",\"\",IF(I5<=0,\"En attente\",\"Pris en charge\"))","v":""},null,null,null,{"$f":"IF(A5=\"\",\"\",(TODAY()-(A5+IF(D5=\"P1\",2,IF(D5=\"P2\",10,IF(D5=\"P3\",21,IF(D5=\"P4\",91,IF(D5=\"P5\",183))))))))","v":""}]
[null,null,null,null,null,null,null,"",null,null,null,{"$f":"IF(A6=\"\",\"\",(TODAY()-(A6+IF(D6=\"P1\",2,IF(D6=\"P2\",10,IF(D6=\"P3\",21,IF(D6=\"P4\",91,IF(D6=\"P5\",183))))))))","v":""}]
[null,null,null,null,null,null,null,"",null,null,null,""]
[null,null,null,null,null,null,null,"",null,null,null,""]
[null,null,null,null,null,null,null,"",null,null,null,""]
[null,null,null,null,null,null,null,"",null,null,null,""]
[null,null,null,null,null,null,null,"",null,null,null,""]
[null,null,null,null,null,null,null,"",null,null,null,""]
[null,null,null,null,null,null,null,"",null,null,null,""]
[null,null,null,null,null,null,null,"",null,null,null,""]
[null,null,null,null,null,null,null,"",null,null,null,""]
[null,null,null,null,null,null,null,"",null,null,null,""]
[null,null,null,null,null,null,null,"",null,null,null,""]
[null,null,null,null,null,null,null,"",null,null,null,""]
[null,null,null,null,null,null,null,"",null,null,null,""]
[null,null,null,null,null,null,null,"",null,null,null,""]
[null,null,null,null,null,null,null,"",null,null,null,""]
[null,null,null,null,null,null,null,"",null,null,null,""]
[null,null,null,null,null,null,null,"",null,null,null,""]
[null,null,null,null,null,null,null,"",null,null,null,""]
[null,null,null,null,null,null,null,"",null,null,null,""]
[null,null,null,null,null,null,null,"",null,null,null,""]
[null,null,null,null,null,null,null,"",null,null,null,""]
[null,null,null,null,null,null,null,"",null,null,null,""]
[null,null,null,null,null,null,null,"",null,null,null,""]
[null,null,null,null,null,null,null,"",null,null,null,""]
["Récapitulatif de la période 4"]
[]
[{"$f":"COUNTA(A4:A30)","v":0},"Total",null,null,null,"Total liste d'attente ",null,{"$f":"COUNTIF(H4:H30, \"En attente\")","v":0}]
[]
[{"$f":"A33-A37","v":0},"Nouvelles incriptions",null,null,null,"Prise en charge",null,{"$f":"COUNTIF(H4:H30, \"Pris en charge\")","v":0}]
[null,null,null,null,null,null," "]
[0,"Transfert de la liste d'attente Période 3"]
[]
[]
["Priorité 1",{"$f":"COUNTIF(D4:D30,\"P1\")","v":0},null,null,null,"NB de prise en charge par Intervenant"]
["Priorité 2",{"$f":"COUNTIF(D4:D30,\"P2\")","v":0},null,null,null,"Maria Pardo",{"$f":"COUNTIF(J4:J30,\"Pardo, Maria\")","v":0}]
["Priorité 3",{"$f":"COUNTIF(D4:D30,\"P3\")","v":0},null,null,null,"Lili-Fleur Blackburn",{"$f":"COUNTIF(J4:J30,\"Blackburn, Lili-Fleur\")","v":0}]
["Priorité 4",{"$f":"COUNTIF(D4:D30,\"P4\")","v":0},null,null,null,"Marie-Élaine Bourdon",{"$f":"COUNTIF(J5:J31,\"Bourdon, Marie-Élaine\")","v":0}]
["Priorité 5",{"$f":"COUNTIF(D4:D30,\"P5\")","v":0}]
[]
[]
[]
[]
[]
[]
[]
[]
[]
[]
[]
[]
[null,"Priorité","Non connu","Provenance de la demande",null,null,"Motif de la demande",null,"Intervenants"]
[null,"P1","Oui","Acc. Psychosocial",null,null,"Vignette",null,"Pardo, Maria"]
[null,"P2","Non","Acc. Centralisé",null,null,"Évaluation ergothérapie",null,"Blackburn, Lili-Fleur"]
[null,"P3",null,"Enfance Famille",null,null,"Aides techniques",null,"Bourdon, Marie-Élaine"]
[null,"P4",null,"DI TED",null,null,"Transport adapté"]
[null,"P5",null,"Santé Mentale",null,null,"Protocole non adaptable"]
[null,null,null,"Serv. Généraux",null,null,"Évaluation fonctionnelle"]
[null,null,null,"SHQ",null,null,"Quadriporteur ou triprteur"]
[null,null,null,"Transfert - Hors secteur",null,null,"Fauteuil Roulant "]
[null,null,null,"Azar, Sophie",null,null,"Déambulateur"]
[null,null,null,"Beaucage, Marie-Sol",null,null,"Désengorgement"]
[null,null,null,"Bergeron, Anick",null,null,"SISAD"]
[null,null,null,"Blackburn, Lili-Fleur ",null,null,"Évaluation sécurité - Chutes"]
[null,null,null,"Boulanger, Stéphanie ",null,null,"Évaluation transferts"]
[null,null,null,"Casimir, Nancy ",null,null,"Évaluation Plaie"]
[null,null,null,"Célestin, Vivianne",null,null,"SSPGM  (AEVM)"]
[null,null,null,"Chrétien, Julie",null,null,"Transfert CLSC"]
[null,null,null,"Collard-Tremblay, Laurie",null,null,"PAD"]
[null,null,null,"Denis, Laura"]
[null,null,null,"Després, France"]
[null,null,null,"Diop, Bassirou"]
[null,null,null,"Faucher, Sylvie "]
[null,null,null,"François, Sarah"]
[null,null,null,"Jalbert, Annie "]
[null,null,null,"Laplante, Marie-Annick"]
[null,null,null,"Laurent, Gina "]
[null,null,null,"Levac, Manon"]
[null,null,null,"Montpetit, Martine "]
[null,null,null,"Moody, Anouk"]
[null,null,null,"Nadeau, Émilie"]
[null,null,null,"Octavius, Sabrina"]
[null,null,null,"Paquet, Chantal"]
[null,null,null,"Paquet, Chantal"]
[null,null,null,"Rainville, Nathalie "]
[null,null,null,"Rodriguez, Isis "]
[null,null,null,"Roméro, Jacqueline "]
[null,null,null,"Savard, Audréanne"]
[null,null,null,"St-Éloi, Maryse "]
[null,null,null,"St-Laurent, Sophie"]
[null,null,null,"Subotic, Vérona"]
[null,null,null,"Tabadzinska, Cynthia "]
[null,null,null,"Trépanier, Mélissa "]
[null,null,null,"Turcotte, Stéphanie"]
[null,null,null,"Vaval, Élizabeth"]
[null,null,null,"Youssa, Joséphine"]